Cogmind - Beta 13 @@@ ROGUE MODE // 2024.06.08 @ 00:34:29 Player: wojo Result: Destroyed by G-47 Trooper with Particle Gun Performance ------------- Evolutions (0) 0 Regions Visited (1) 200 Robots Destroyed (10) 50 Value Destroyed (129) 129 Prototype IDs (0) 0 Alien Tech Used (0) 0 Bonus (0) 0 TOTAL SCORE: 379 Bonus ------- None Cogmind --------- Core Integrity 0/250 Matter 248/300 Energy 100/100 System Corruption 0% Temperature Cool (54) Movement Core (100) Ox1 Location -10/Materials Parts ------- > --- POWER (1) -------- (None) > --- PROPULSION (2) --- Aluminum Leg > --- UTILITY (2) ------ Small Storage Unit > --- WEAPON (2) ------- Small Laser > --- INVENTORY (8) ---- (None) Peak State ------------ > --- POWER ------------ Ion Engine > --- PROPULSION ------- Light Treads Light Treads > --- UTILITY ---------- Improved Terrain Scanner Seismic Detector > --- WEAPON ----------- Medium Laser Light Assault Rifle > --- INVENTORY -------- Light Ion Engine Aluminum Leg Wheel Small Storage Unit [Rating: 9] Favorites ----------- Power Ion Engine Engine Ion Engine Propulsion Light Treads Treads Light Treads Leg Aluminum Leg Wheel Wheel Utility Seismic Detector Device Seismic Detector Storage Small Storage Unit Weapon Light Assault Rifle Energy Gun Medium Laser Ballistic Gun Light Assault Rifle Build | -11 -10 ------- Run | Yrd Mat Slots Evolved . | . . Power . | . . Propulsion . | . . Utility . | . . Weapon . | . . Parts Attached 13 | 6 7 Power 3 | 2 1 Engine 3 | 2 1 Core . | . . Reactor . | . . Propulsion 4 | 2 2 Treads 2 | 2 . Leg 1 | . 1 Wheel 1 | . 1 Hover . | . . Flight . | . . Utility 3 | . 3 Device 2 | . 2 Storage 1 | . 1 Processor . | . . Hackware . | . . Protection . | . . Artifact . | . . Weapon 3 | 2 1 Energy Gun 2 | 1 1 Energy Cannon . | . . Ballistic Gun 1 | 1 . Ballistic Cannon . | . . Launcher . | . . Special Weapon . | . . Impact Weapon . | . . Slashing Weapon . | . . Piercing Weapon . | . . Special Melee Weapon . | . . Unidentified Prototypes . | . . Parts Lost 9 | . 9 Power 2 | . 2 Propulsion 3 | . 3 Utility 2 | . 2 Weapon 2 | . 2 Highest Loss Streak 9 | . 9 To Critical Strikes . | . . Average Slot Usage (%) 82 | . 82 Engine 12 | . 12 Treads 26 | . 26 Device 13 | . 13 Energy Gun 13 | . 13 Ballistic Gun 13 | . 13 Naked Turns . | . . Heaviest Build 10 | 8 10 Greatest Support 40 | 40 40 Greatest Overweight (x) . | . . Average Overweight (x) . | . . Largest Inventory Capacity 8 | 5 8 Average Capacity 5 | 5 5 Most Carried 5 | 5 4 Average Carried 3 | 3 3 Final Capacity 8 | 5 8 Final Carried 4 | 4 . Class Distribution -------------------- 100% | Mutant Dominant Class ---------------- Mutant | -10/Materials Resources | -11 -10 ----------- Run | Yrd Mat Matter Collected 260 | 132 128 Remotely . | . . Salvage Created 222 | 10 212 Parts 28 | 3 25 Haulers Intercepted . | . . Recyclers Shooed 2 | . 2 Parts Field Recycled . | . . Retrieved Matter . | . . Parts Self-Destructed . | . . Prevented . | . . Kills | -11 -10 ------- Run | Yrd Mat Combat Hostiles Destroyed 2 | . 2 Guns 2 | . 2 Classes Destroyed 5 | 1 4 Worker 4 | 1 3 Builder 1 | . 1 Tunneler 1 | . 1 Watcher 2 | . 2 Grunt 2 | . 2 Best Kill Streak 1 | 1 1 Combat Bots Only 1 | . 1 Max Kills in Single Turn 1 | 1 1 Gunslinging . | . . Exploded . | . . Melee . | . . Uniques/NPCs Destroyed . | . . Combat | -11 -10 -------- Run | Yrd Mat Hostile Shots Fired 109 | . 109 Missed 26 | . 26 Damage Taken 1065 | . 1065 Core 264 | . 264 Absorbed by Shields . | . . Core Remaining (%) 100 | 100 . Volleys Fired 36 | 3 33 Largest 2 | 2 2 Hottest 70 | 70 70 Shots Fired 62 | 6 56 Gun 62 | 6 56 Cannon . | . . Launcher . | . . Special . | . . Kinetic 29 | 3 26 Thermal 33 | 3 30 Explosive . | . . Electromagnetic . | . . Robot Hit Streak 5 | 1 5 Robot Miss Streak 2 | . 2 Penetration Max . | . . Secondary Targets 1 | . 1 Max Gunslinging Chain 1 | . 1 Shots Hit Robots 33 | 1 32 Core Hits 17 | 1 16 Critical Kills . | . . Critical Parts Destroyed . | . . Critical Strikes 1 | . 1 Burn 1 | . 1 Melee Attacks . | . . Impact . | . . Slashing . | . . Piercing . | . . Sneak Attacks . | . . Combat Hostiles . | . . Follow-up Attacks . | . . Damage Inflicted 385 | 12 373 Guns 384 | 12 372 Cannons . | . . Explosions . | . . Melee . | . . Ramming 1 | . 1 Kinetic 98 | . 98 Thermal 286 | 12 274 Explosive . | . . Electromagnetic . | . . Impact . | . . Slashing . | . . Piercing . | . . Highest Corruption . | . . Average Corruption . | . . Corruption Purged . | . . Corruption Blocked . | . . Overload Shots . | . . Overflow Damage . | . . Projectiles . | . . Explosions . | . . Melee . | . . Knockbacks . | . . Impact . | . . Kinetic . | . . Secondary . | . . Self-Inflicted Damage . | . . Shots . | . . Rammed 1 | . 1 Targets Rammed 2 | . 2 Kicked . | . . Crushed 1 | . 1 Highest Temperature 155 | 40 155 Average Temperature 35 | 19 36 Received Heat Transfer 675 | . 675 Siege Activations . | . . Robots Corrupted . | . . Combat Hostiles . | . . Parts Fried . | . . Impact Corruptions . | . . Robots Melted . | . . Combat Hostiles . | . . Parts Melted 1 | . 1 Heat Transferred 890 | 37 853 Parts Sabotaged . | . . Parts Stolen . | . . Parts Stripped . | . . Power Chain Reactions . | . . Alert | -11 -10 ------- Run | Yrd Mat Peak Influence 30 | 5 30 Initial 3 | . 3 Average 11 | . 13 Maximum Alert Level . | . . Low Security (%) 100 | 100 100 Level 1 . | . . Level 2 . | . . Level 3 . | . . Level 4 . | . . Level 5 . | . . High Security . | . . Max Security . | . . Squads Dispatched 1 | . 1 Investigation . | . . Extermination . | . . Reinforcement 1 | . 1 Assault . | . . Garrison . | . . Intercept . | . . Searches Triggered . | . . Construction Impeded . | . . Haulers Reinforced . | . . Active Scanning Responses . | . . Cargo Convoy Interrupts . | . . Stealth | -11 -10 --------- Run | Yrd Mat Distress Signals 2 | . 2 Communications Jammed . | . . Distress Signals . | . . Times Spotted 11 | . 11 Peak Tracking Total 5 | . 5 Tactical Retreats 1 | . 1 Traps | -11 -10 ------- Run | Yrd Mat Traps Triggered . | . . Indirectly . | . . Trap Hack Attempts . | . . Triggered . | . . Disarmed . | . . Reprogrammed . | . . Reused . | . . Traps Extracted . | . . Installed . | . . Triggered . | . . Machines | -11 -10 ---------- Run | Yrd Mat Machines Disabled . | . . Max in Single Turn . | . . Machines Repaired . | . . Machines Dismantled . | . . Machines Sabotaged . | . . Overloaded Fab Kills . | . . Hacking | -11 -10 --------- Run | Yrd Mat Machines Accessed . | . . Terminals . | . . Fabricators . | . . Repair Stations . | . . Recycling Units . | . . Scanalyzers . | . . Garrison Access . | . . Total Hacks . | . . Successful . | . . Failed . | . . Catastrophic . | . . Database Lockouts . | . . Manual . | . . Terminals . | . . Fabricators . | . . Repair Stations . | . . Recycling Units . | . . Scanalyzers . | . . Garrison Access . | . . Terminal Hacks . | . . Fabricator Hacks . | . . Repair Station Hacks . | . . Recycling Unit Hacks . | . . Scanalyzer . | . . Garrison Access Hacks . | . . Unauthorized Hacks . | . . Terminals . | . . Fabricators . | . . Repair Stations . | . . Recycling Units . | . . Scanalyzers . | . . Garrison Access . | . . Data Cores Recovered . | . . Used . | . . Hacking Detections . | . . Full Trace Events . | . . Feedback Events . | . . Feedback Blocked . | . . Robot Schematics Acquired . | . . Robots Built . | . . Authchips . | . . Time . | . . Total Robot Build Rating . | . . Part Schematics Acquired . | . . Parts Built . | . . Authchips . | . . Time . | . . Total Part Build Rating . | . . Parts Repaired . | . . Time . | . . Parts Recycled . | . . Recycled Matter . | . . Retrieved Matter . | . . Retrieved Components . | . . Parts Scanalyzed . | . . Part Schematics Acquired . | . . Parts Damaged . | . . Bothacking | -11 -10 ------------ Run | Yrd Mat Used RIF Installer . | . . Robots Hacked . | . . Non-combat . | . . Combat . | . . Robot Hacks Applied . | . . Relay Couplers Released . | . . Fabnet Peak Effective % . | . . Robots Rewired . | . . Allies Hacked . | . . Hacks Repelled . | . . Allies | -11 -10 -------- Run | Yrd Mat Total Allies . | . . Largest Group . | . . Highest-Rated Group . | . . Highest-Rated Ally . | . . Total Orders . | . . Ally Attacks . | . . Total Damage . | . . Kills . | . . Allies Corrupted . | . . Allies Melted . | . . Intel | -11 -10 ------- Run | Yrd Mat Robot Analysis Total . | . . Derelict Logs Recovered . | . . Drone Launches . | . . Drone Recoveries . | . . Exploration | -11 -10 ------------- Run | Yrd Mat Turns Passed 738 | 132 606 Spaces Moved 431 | 107 324 Core 56 | 56 . Treads 365 | 51 314 Legs . | . . Wheels 10 | . 10 Hover . | . . Flight . | . . Fastest Speed 50 | 50 80 Average Speed 143 | 102 157 Slowest Speed 160 | 160 160 Overloaded Moves . | . . Propulsion Burnouts . | . . Robots Hopped . | . . Cave-ins Triggered . | . . Exploration Rate (%) 17 | 4 30 Regions Visited 1 Branch Regions . Pre-discovered Areas . | . . Known Exits Taken . | . . Unknown Exits Taken 1 | 1 . Scrap Searched . | . . Spaces Dug . | . . Terrain Destroyed . | . . Melee . | . . Projectile . | . . AOE . | . . Terrain Rammed . | . . Walls Destroyed . | . . Machines Disabled . | . . Actions | -11 -10 --------- Run | Yrd Mat Total 490 | 124 366 Wait . | . . Move 430 | 106 324 Hop . | . . Pick Up 9 | 9 . Fast Attach 3 | . 3 Attach 9 | 5 4 Detach . | . . Swap 1 | 1 . Drop . | . . Fire 36 | 3 33 Melee . | . . Ram . | . . Kick . | . . Crush 2 | . 2 Escape Stasis . | . . Rewire . | . . Trap . | . . Miscellaneous . | . . Route ------- -11/Scrapyard -10/Materials (discovered 1 exit: [*Min]) History --------- Turn | Location | Event 16 | -11/Scrapyard | Discovered new exit (range 16) 133 | -11/Scrapyard | Entered Materials 180 | -10/Materials | Discovered new exit (range 16) 305 | -10/Materials | Build established: Mutant 697 | -10/Materials | Core integrity fell below 50% 722 | -10/Materials | Core integrity fell below 20% 739 | -10/Materials | Destroyed by G-47 Trooper with Particle Gun Last Messages --------------- 00708_ Lgt. Treads destroyed. 00709_ R-06 Scavenger inserts Hover Unit into recycling unit. 00710_ G-34 Mercenary destroyed. 00711_ ALERT: Hostiles spotted, dispatching reinforcements to Terminal M001. 00712_ Lgt. Assault Rifle destroyed. 00712_ Acquired Sml. Laser. 00712_ K-01 Serf collects debris. 00714_ R-06 Scavenger collects Heat Sink. 00716_ K-01 Serf collects debris. 00718_ R-06 Scavenger collects Aluminum Leg. 00719_ K-01 Serf cleans the Terminal. 00720_ K-01 Serf collects debris. 00721_ R-06 Scavenger collects Heat Sink. 00723_ Critical hit (Burn: +37). 00726_ Lgt. Ion Engine destroyed. 00731_ Wheel destroyed. 00735_ Lgt. Nuclear Core melted. 00735_ G-47 Trooper destroyed. Map ----- +----------------------------------------------------+ | ??+ * * | | ??# | | ??# ! ###+################## ############ | | ??## ## ???? ?????????## ####???????###### | | ??## ## ???? #????????+ !##?????#?????? | | ???# ## """ ""?????????????# !#???????????? | | ???# ## """ """ ???????????# !#???????????? | | ???# ## """ """ ?????? ???# !#???????????? | | ???# ## ?????? ??? ?# !#??#??#?????? | | ?#?# ## ! ?????? ? ???# !###?#????????? | | #??# ###########???#?????#?# ####????????????? | | ??? #???????????????? ?#?## ####????#???????? | | ???# #???T??#??????????#??# "##?????????#?? | | ???# +???????????##???????# ""#???????#????? | | ???# #????????##??????##### ||#????????????? | | ???# #???????????????? # < ""#????????????? | | ???? #????????????? ?"" # !!#???????#????? | | ???? ???????????????""" # ""#????#?#?????? | | ???????????????????????"" # "#??? ????????? | | ?????????????????????? ## ####?? ?? ??????? | | ????????????????????????" ## #???? ? ???? ???? | | ????????????????????????" ## #?????"????#????? | | ????????????????????????? ?# #???????????????? | | ????????????????????????? ## ##??????????????? | | ?????????????????????#?###+## ! =*####+##+####+??? | | ???????????????### ##### @ %%= = T | | ?????????????????# a g ==[g!%= | | ?????????????????####### ! | | ???????????????????????### ##+##### # | | ????????????????????#????# "" #? ?#??? ? | | ???????????????????####### "Y [#??"""#????????? | | ?????????????????#?# "" #??"""#?? ?????? | | ???????????????????# #??"""#????????? | | ???????????????????# g #?? ?????????? | | ??????????????????###+#####/####### ?????????????? | | ??????????????????? ?????? ????????????????????? | | ????????????????????? ???? ????#???????????????? | | ??????????????????????????? ????????????????????? | | ?????????????????????????"? ?????????? ?????????? | | ???????????????????????????? "????? ?????????????? | | ???????????????????????? ????????????????????????? | | ?????????????????????????????????????????????????? | | ?????????????????????????????????????????????????? | | ?????????????????????????????????????????????????? | | ?????????????????????????????????????????????????? | | ?????????????????????????????#????#??????????????? | | ?????????????????????????????????????????????????? | | ?????????????????????????????????????????????????? | | ?????????????????????????????????????????????????? | | ?????????????????????????????????????????????????? | +----------------------------------------------------+ Best States ------------- Heat Dissipation 25 Energy Generation 10 Energy Capacity 250 Matter Stores 284 Matter Capacity 300 Sight Range 16 Terrain Scan Range 16 Terrain Scan Density 10 Evasion (%) 50 Recoil Reduction 2 Item Schematics ----------------- None Robot Schematics ------------------ None Fabricated ------------ Nothing Alien Tech Used ----------------- None Achievements -------------- None Challenges ------------ None Game ------ Seed LegFieldRedirector Manual? 0 Play Time 00:08:13 Cumulative 28.5 hours Start 2024.06.08 @ 00:27:03 End 2024.06.08 @ 00:34:29 Sessions 1 Manual Loads 0 Difficulty Rogue Special Mode None Game No. 47 Rogue 47 Adventurer 0 Explorer 0 Win Type - Total 0 Types 0/0/0/0/0/0/0/0/0 Lore% 22 Gallery% 26 Achievement% 18 Wizard Run 0 Options --------- Layout 1 ASCII 0 Keyboard 0 Movement Arrows Keybinds 0 Fullscreen 1 Font 16/Terminus Map View 50x40 Zoom Use 48% Tactical HUD 1 Map Filters NONE Filters NONE Steam SD RUN: 232280b7-356c-4116-98dd-9bb0ba0f70b9